Cogmind - Beta 11 X8 @@@ ROGUE MODE // 2021.11.28 @ 01:22:23 Player: Runia Result: Destroyed self with Grenade Launcher Performance ------------- Evolutions (0) 0 Regions Visited (4) 800 Robots Destroyed (51) 255 Value Destroyed (662) 662 Prototype IDs (35) 700 Alien Tech Used (0) 0 Bonus (-488) -488 TOTAL SCORE: 1929 Bonus ------- Aligned with FarCom 300 Friendly Fire -788 Cogmind --------- Core Integrity 0/250 Matter 280/300 Energy 299/310 System Corruption 0% Temperature Cool (0) Movement Walking (200) Ox1 Location -9/Mines Parts ------- > --- POWER (1) -------- Reinforced Fission Core > --- PROPULSION (2) --- Makeshift Leg Advanced Myomer Leg > --- UTILITY (2) ------ High-capacity Storage Unit Hardened Medium Armor Plating > --- WEAPON (2) ------- 8R-AWN's Boregun Grenade Launcher > --- INVENTORY (20) --- Aluminum Leg Makeshift Leg Experimental Heat Sink Large Matter Pod (150) Advanced Visual Processing Unit Experimental Targeting Computer Improved Armor Integrity Analyzer Transmission Jammer Improved Light Armor Plating Makeshift System Shield Advanced Component Analysis Suite System Purifier AS-neutralizer No. 17b Assault Rifle Heavy Assault Rifle 8R-AWN's Boregun Rocket Launcher Rocket Launcher Flail Flail Peak State ------------ > --- POWER ------------ Reinforced Fission Core > --- PROPULSION ------- Makeshift Leg Advanced Myomer Leg > --- UTILITY ---------- High-capacity Storage Unit Hardened Medium Armor Plating > --- WEAPON ----------- 8R-AWN's Boregun 8R-AWN's Boregun > --- INVENTORY -------- Light Treads Experimental Heat Sink Large Matter Pod Advanced Visual Processing Unit Experimental Targeting Computer Transmission Jammer Improved Light Armor Plating AS-neutralizer No. 17b Assault Rifle Heavy Assault Rifle Grenade Launcher Grenade Launcher Rocket Launcher Rocket Launcher Flail Flail [Rating: 46] Favorites ----------- Power Deuterium Engine Engine Deuterium Engine Power Core Reinforced Fission Core Propulsion Light Treads Treads Light Treads Leg Makeshift Leg Utility High-capacity Storage Unit Device Advanced Component Analysis Suite Storage High-capacity Storage Unit Protection Improved Light Armor Plating Weapon Heavy Assault Rifle Energy Gun Small Laser Ballistic Gun Heavy Assault Rifle Launcher Rocket Launcher Impact Weapon Flail Slashing Weapon Longsword +1 Build | -11 -10 -10 -10 -9 ------- Run | Scr Mat Min Exi Min Slots Evolved . | . . . . . Power . | . . . . . Propulsion . | . . . . . Utility . | . . . . . Weapon . | . . . . . Parts Attached 44 | 2 12 8 20 2 Power 4 | . 1 1 2 . Engine 3 | . 1 1 1 . Core 1 | . . . 1 . Reactor . | . . . . . Propulsion 10 | 2 2 1 5 . Treads 8 | 2 2 1 3 . Leg 2 | . . . 2 . Wheel . | . . . . . Hover . | . . . . . Flight . | . . . . . Utility 13 | . 3 3 6 1 Device 2 | . . . 2 . Storage 2 | . 1 1 . . Processor . | . . . . . Hackware . | . . . . . Protection 9 | . 2 2 4 1 Artifact . | . . . . . Weapon 17 | . 6 3 7 1 Energy Gun . | . . . . . Energy Cannon . | . . . . . Ballistic Gun 8 | . 1 3 4 . Ballistic Cannon . | . . . . . Launcher 5 | . 2 . 2 1 Special Weapon . | . . . . . Impact Weapon 3 | . 3 . . . Slashing Weapon 1 | . . . 1 . Piercing Weapon . | . . . . . Special Melee Weapon . | . . . . . Unidentified Prototypes 3 | . . . 3 . Parts Lost 5 | . . . 5 . Power 1 | . . . 1 . Propulsion 3 | . . . 3 . Utility . | . . . . . Weapon 1 | . . . 1 . Highest Loss Streak 5 | . . . 5 . Average Slot Usage (%) 98 | . 93 100 99 100 Engine 9 | . 14 14 7 . Core 4 | . . . 6 14 Treads 21 | . 28 28 18 . Leg 6 | . . . 9 28 Storage 14 | . 14 14 14 14 Protection 12 | . 8 14 13 14 Ballistic Gun 19 | . 2 25 27 28 Impact Weapon 7 | . 22 2 . . Naked Turns . | . . . . . Heaviest Build 81 | 11 32 56 81 78 Greatest Support 50 | 40 40 40 50 50 Greatest Overweight (x) 2 | . . 1 2 1 Average Overweight (x) . | . . . 1 1 Largest Inventory Capacity 20 | 8 15 20 20 20 Average Capacity 17 | 8 14 17 20 20 Most Carried 20 | 6 15 16 20 20 Average Carried 15 | 4 10 15 17 20 Final Capacity 20 | 8 15 20 20 20 Final Carried 20 | 2 15 16 20 20 Class Distribution -------------------- 72% | Mutant 27% | Scavenger-Mutant Dominant Class ---------------- Mutant | -10/Materials Mutant | -10/Mines Mutant | -10/Exiles Scavenger-Mutant | -9/Mines Resources | -11 -10 -10 -10 -9 ----------- Run | Scr Mat Min Exi Min Matter Collected 1943 | 200 534 116 749 344 Remotely . | . . . . . Salvage Created 1701 | . 596 197 606 302 Parts 121 | . 24 11 66 20 Haulers Intercepted 1 | . 1 . . . Recyclers Shooed 3 | . . 2 . 1 Parts Field Recycled . | . . . . . Retrieved Matter . | . . . . . Parts Self-Destructed . | . . . . . Prevented . | . . . . . Kills | -11 -10 -10 -10 -9 ------- Run | Scr Mat Min Exi Min Combat Hostiles Destroyed 21 | . 13 3 4 1 Melee 6 | . 5 . 1 . Guns 3 | . . 3 . . AOE 12 | . 8 . 3 1 Classes Destroyed 13 | . 9 1 3 . Worker 7 | . 5 . . 2 Builder 4 | . 2 . . 2 Tunneler 1 | . 1 . . . Hauler 1 | . 1 . . . Recycler 3 | . 1 1 . 1 Operator 2 | . 2 . . . Turret 1 | . . . 1 . Watcher 3 | . 3 . . . Swarmer 7 | . 5 1 . 1 Grunt 9 | . 8 1 . . Sentry 1 | . . 1 . . Zionite 8 | . . . 8 . Assembled 3 | . . . 3 . Best Kill Streak 7 | . 7 1 3 3 Combat Bots Only 6 | . 6 1 3 1 Max Kills in Single Turn 2 | . 2 1 1 2 Gunslinging . | . . . . . Exploded 2 | . 2 . 1 1 Melee 1 | . 1 . 1 . Uniques/NPCs Destroyed 5 | . . . 4 1 8R-AWN (-10/Exiles) EX-BIN (-10/Exiles) EX-HEX (-10/Exiles) EX-DEC (-10/Exiles) YI-UF0 (-9/Mines) Combat | -11 -10 -10 -10 -9 -------- Run | Scr Mat Min Exi Min Damage Taken 1568 | . 530 34 963 41 Core 261 | . 116 21 104 20 Absorbed by Shields . | . . . . . Core Remaining (%) 100 | 100 . . . . Volleys Fired 103 | . 9 10 69 15 Largest 2 | . 1 2 2 2 Hottest 60 | . 33 43 60 53 Shots Fired 178 | . 9 20 120 29 Gun 160 | . . 20 112 28 Cannon . | . . . . . Launcher 18 | . 9 . 8 1 Special . | . . . . . Kinetic 160 | . . 20 112 28 Thermal . | . . . . . Explosive 18 | . 9 . 8 1 Electromagnetic . | . . . . . Robot Hit Streak 6 | . 5 4 6 4 Robot Miss Streak 5 | . 3 4 5 2 Penetration Max 1 | . . . 1 1 Secondary Targets . | . . . . . Shots Hit Robots 134 | . 33 11 75 15 Core Hits 67 | . 19 7 33 8 Critical Kills 9 | . 1 . 5 3 Critical Parts Destroyed 14 | . 1 . 10 3 Critical Strikes 24 | . 2 . 16 6 Destroy 21 | . . . 15 6 Smash 2 | . 2 . . . Sever 1 | . . . 1 . Melee Attacks 65 | . 47 . 18 . Impact 47 | . 47 . . . Slashing 18 | . . . 18 . Piercing . | . . . . . Sneak Attacks 13 | . 13 . . . Combat Hostiles . | . . . . . Follow-up Attacks 4 | . 4 . . . Damage Inflicted 4796 | . 2288 119 2032 357 Guns 1302 | . . 119 873 310 Cannons . | . . . . . Explosions 1164 | . 748 . 369 47 Melee 2330 | . 1540 . 790 . Ramming . | . . . . . Kinetic 1302 | . . 119 873 310 Thermal . | . . . . . Explosive 1164 | . 748 . 369 47 Electromagnetic . | . . . . . Impact 1540 | . 1540 . . . Slashing 790 | . . . 790 . Piercing . | . . . . . Highest Corruption 1 | . 1 1 1 . Average Corruption 1 | . 1 1 1 . Corruption Purged 1 | . . . 1 . Effects 9 | . 3 3 3 . Message Errors 4 | . 2 1 1 . Energy Discharges 2 | . 1 1 . . Data Loss (minor) 1 | . . 1 . . Weapon Failures 2 | . . . 2 . Overload Shots . | . . . . . Overflow Damage 842 | . 788 . 54 . Projectiles 11 | . 11 . . . Explosions 61 | . 7 . 54 . Melee 770 | . 770 . . . Knockbacks 9 | . 9 . . . Impact 7 | . 7 . . . Kinetic . | . . . . . Secondary 2 | . 2 . . . Self-Inflicted Damage 121 | . 46 . 35 40 Shots 4 | . 2 . 1 1 Rammed . | . . . . . Targets Rammed . | . . . . . Kicked . | . . . . . Crushed . | . . . . . Highest Temperature 261 | . 20 15 261 216 Average Temperature 93 | . 13 6 105 79 Received Heat Transfer 204 | . 195 9 . . Effects 3 | . . . 3 . Interference 3 | . . . 3 . Siege Activations . | . . . . . Robots Corrupted . | . . . . . Combat Hostiles . | . . . . . Parts Fried 16 | . 16 . . . Impact Corruptions 27 | . 27 . . . Robots Melted . | . . . . . Combat Hostiles . | . . . . . Parts Melted . | . . . . . Heat Transferred . | . . . . . Parts Sabotaged . | . . . . . Parts Stolen . | . . . . . Parts Stripped . | . . . . . Power Chain Reactions . | . . . . . Missiles Intercepted . | . . . . . Alert | -11 -10 -10 -10 -9 ------- Run | Scr Mat Min Exi Min Peak Influence 279 | . 279 128 . 25 Initial 58 | . . 58 . . Average 104 | . 133 82 . 15 Maximum Alert Level 1 | . 1 . . . Low Security (%) 80 | 100 68 100 . 100 Level 1 19 | . 31 . . . Level 2 . | . . . . . Level 3 . | . . . . . Level 4 . | . . . . . Level 5 . | . . . . . High Security . | . . . . . Max Security . | . . . . . Squads Dispatched 5 | . 4 1 . . Investigation 3 | . 2 1 . . Extermination . | . . . . . Reinforcement 2 | . 2 . . . Assault . | . . . . . Garrison . | . . . . . Intercept . | . . . . . Construction Impeded . | . . . . . Haulers Reinforced . | . . . . . Active Scanning Responses . | . . . . . Cargo Convoy Interrupts . | . . . . . Stealth | -11 -10 -10 -10 -9 --------- Run | Scr Mat Min Exi Min Distress Signals . | . . . . . Communications Jammed . | . . . . . Distress Signals . | . . . . . Times Spotted 60 | . 29 6 22 3 Peak Tracking Total 10 | . 6 2 10 4 Tactical Retreats 15 | . 7 . 8 . Traps | -11 -10 -10 -10 -9 ------- Run | Scr Mat Min Exi Min Traps Triggered 1 | . 1 . . . Indirectly . | . . . . . Trap Hack Attempts . | . . . . . Triggered . | . . . . . Disarmed . | . . . . . Reprogrammed . | . . . . . Reused . | . . . . . Traps Extracted . | . . . . . Installed . | . . . . . Triggered . | . . . . . Exploded 3 | . . . 3 . Machines | -11 -10 -10 -10 -9 ---------- Run | Scr Mat Min Exi Min Machines Disabled 17 | . 1 . 16 . Max in Single Turn 2 | . 1 . 2 . Machines Sabotaged . | . . . . . Garrisons Compromised . | . . . . . Overloaded Fab Kills . | . . . . . Hacking | -11 -10 -10 -10 -9 --------- Run | Scr Mat Min Exi Min Machines Accessed 12 | . 9 1 2 . Terminals 6 | . 6 . . . Fabricators . | . . . . . Repair Stations 1 | . 1 . . . Recycling Units 2 | . 2 . . . Scanalyzers . | . . . . . Garrison Access . | . . . . . Total Hacks 33 | . 30 1 2 . Successful 21 | . 18 1 2 . Failed 11 | . 11 . . . Catastrophic . | . . . . . Database Lockouts 1 | . 1 . . . Manual 9 | . 8 . 1 . Terminals 25 | . 25 . . . Fabricators . | . . . . . Repair Stations 2 | . 2 . . . Recycling Units 3 | . 3 . . . Scanalyzers . | . . . . . Garrison Access . | . . . . . Terminal Hacks 17 | . 14 1 2 . Record 1 | . . . 1 . Part Schematic 1 | . 1 . . . Prototype ID Bank 4 | . 4 . . . Open Door 1 | . . 1 . . Branch Access Points 1 | . 1 . . . Unreport Threat 2 | . 2 . . . Locate Traps 1 | . 1 . . . Hauler Manifests 2 | . 2 . . . Zone Layout 3 | . 3 . . . EX-Prototype ID Bank 1 | . . . 1 . Fabricator Hacks . | . . . . . Repair Station Hacks 2 | . 2 . . . Scan Component 1 | . 1 . . . Repair 1 | . 1 . . . Recycling Unit Hacks . | . . . . . Scanalyzer . | . . . . . Garrison Access Hacks . | . . . . . Unauthorized Hacks 2 | . 2 . . . Terminals . | . . . . . Fabricators . | . . . . . Repair Stations . | . . . . . Recycling Units 2 | . 2 . . . Tunnel 2 | . 2 . . . Scanalyzers . | . . . . . Garrison Access . | . . . . . Data Cores Recovered . | . . . . . Used . | . . . . . Hacking Detections 8 | . 8 . . . Full Trace Events 1 | . 1 . . . Feedback Events . | . . . . . Feedback Blocked . | . . . . . Robot Schematics Acquired . | . . . . . Robots Built . | . . . . . Authchips . | . . . . . Time . | . . . . . Total Robot Build Rating . | . . . . . Part Schematics Acquired 1 | . 1 . . . Parts Built . | . . . . . Authchips . | . . . . . Time . | . . . . . Total Part Build Rating . | . . . . . Parts Repaired 1 | . 1 . . . Time 26 | . 26 . . . Parts Recycled . | . . . . . Recycled Matter . | . . . . . Retrieved Matter . | . . . . . Retrieved Components . | . . . . . Parts Scanalyzed . | . . . . . Part Schematics Acquired . | . . . . . Parts Damaged . | . . . . . Bothacking | -11 -10 -10 -10 -9 ------------ Run | Scr Mat Min Exi Min Used RIF Installer . | . . . . . Robots Hacked . | . . . . . Non-combat . | . . . . . Combat . | . . . . . Robot Hacks Applied . | . . . . . Relay Couplers Released . | . . . . . Fabnet Peak Effective % . | . . . . . Robots Rewired . | . . . . . Allies Hacked . | . . . . . Hacks Repelled . | . . . . . Allies | -11 -10 -10 -10 -9 -------- Run | Scr Mat Min Exi Min Total Allies . | . . . . . Largest Group . | . . . . . Highest-Rated Group . | . . . . . Highest-Rated Ally . | . . . . . Total Orders . | . . . . . Ally Attacks . | . . . . . Total Damage . | . . . . . Kills . | . . . . . Allies Corrupted . | . . . . . Allies Melted . | . . . . . Intel | -11 -10 -10 -10 -9 ------- Run | Scr Mat Min Exi Min Robot Analysis Total . | . . . . . Derelict Logs Recovered . | . . . . . Drone Launches . | . . . . . Drone Recoveries . | . . . . . Exploration | -11 -10 -10 -10 -9 ------------- Run | Scr Mat Min Exi Min Turns Passed 4352 | 5 1360 522 2156 309 Spaces Moved 1837 | 1 693 233 778 132 Core . | . . . . . Treads 1434 | 1 693 233 507 . Legs 403 | . . . 271 132 Wheels . | . . . . . Hover . | . . . . . Flight . | . . . . . Fastest Speed 160 | 160 160 160 200 200 Average Speed 198 | 160 160 201 232 200 Slowest Speed 320 | 160 160 240 320 200 Overloaded Moves . | . . . . . Propulsion Burnouts . | . . . . . Robots Hopped . | . . . . . Cave-ins Triggered . | . . . . . Exploration Rate (%) 45 | 2 94 28 84 20 Regions Visited 4 Branch Regions 3 Pre-discovered Areas 4 | . 2 1 1 . Known Exits Taken 1 | . 1 . . . Unknown Exits Taken 3 | 1 . 1 1 . Scrap Searched 1 | . . . . 1 Spaces Dug 16 | . 16 . . . Terrain Destroyed 127 | . 70 . 46 11 Melee 8 | . 8 . . . Projectile 21 | . . . 13 8 AOE 97 | . 62 . 32 3 Terrain Rammed . | . . . . . Walls Destroyed . | . . . . . Machines Disabled . | . . . . . Actions | -11 -10 -10 -10 -9 --------- Run | Scr Mat Min Exi Min Total 2284 | 6 873 274 982 149 Wait 167 | . 92 6 69 . Move 1833 | . 692 232 777 132 Hop . | . . . . . Pick Up 43 | . 19 7 17 . Fast Attach 4 | . 1 . 3 . Attach 10 | 2 1 . 7 . Detach 1 | . . . 1 . Swap 30 | . 10 8 10 2 Drop 35 | 4 9 11 11 . Fire 103 | . 9 10 69 15 Melee 58 | . 40 . 18 . Ram . | . . . . . Kick . | . . . . . Crush . | . . . . . Escape Stasis . | . . . . . Rewire . | . . . . . Trap . | . . . . . Miscellaneous . | . . . . . Route ------- -11/Scrapyard -10/Materials (discovered 4 exits: [*Mat x3] / *Min) -10/Mines (discovered 2 exits: [*Mat] / *Exi) -10/Exiles -9/Mines History --------- Turn | Location | Event 6 | -11/Scrapyard | Discovered new exit (range 0) 6 | -11/Scrapyard | Entered Materials 125 | -10/Materials | Identified exit to Mines 314 | -10/Materials | Discovered new exit (range 16) 317 | -10/Materials | Build established: Mutant 474 | -10/Materials | Discovered new exit (range 15) 474 | -10/Materials | Central database locked down 567 | -10/Materials | Repaired Lgt. Armor Plating 703 | -10/Materials | Discovered new exit (range 12) 1366 | -10/Materials | Entered Mines 1367 | -10/Mines | Learned location of Storage (-9) 1374 | -10/Mines | Deemed a non-threat by the Exiles lab entrance 1374 | -10/Mines | Discovered new exit (range 5) 1380 | -10/Mines | Met a Derelict bent on vengeance 1418 | -10/Mines | Core integrity fell below 50% 1511 | -10/Mines | Discovered new exit (range 7) 1541 | -10/Mines | Met a Derelict shopkeep closing up shop 1888 | -10/Mines | Entered Exiles 1948 | -10/Exiles | Met 8R-AWN 1982 | -10/Exiles | Met EX-HEX 2164 | -10/Exiles | Met EX-DEC 2174 | -10/Exiles | Learned location of Zion (-7) 2335 | -10/Exiles | Met EX-BIN 2368 | -10/Exiles | Aligned with FarCom system 2371 | -10/Exiles | Given EX-Vault access code 2426 | -10/Exiles | Opened EX-Vault 2438 | -10/Exiles | Found Longsword +1 2489 | -10/Exiles | Warned to stay clear of 0b10 Research branches 2865 | -10/Exiles | Attacked by the Exiles 2972 | -10/Exiles | Core integrity fell below 20% 3002 | -10/Exiles | Destroyed 8R-AWN 3009 | -10/Exiles | Found Prototype Ballistic Gun 3018 | -10/Exiles | Found Prototype Ballistic Gun 3022 | -10/Exiles | Found Prototype Processor 3025 | -10/Exiles | Lost 5 parts (1p3n1w) 3033 | -10/Exiles | Found Prototype Device 3043 | -10/Exiles | Identified 8R-AWN's Boregun (x2) 3367 | -10/Exiles | Destroyed EX-BIN 3371 | -10/Exiles | Destroyed EX-HEX 3563 | -10/Exiles | Destroyed EX-DEC 3596 | -10/Exiles | Found Prototype Device 3596 | -10/Exiles | Identified System Purifier 3622 | -10/Exiles | Build established: Scavenger-Mutant 3730 | -10/Exiles | Identified Exp. Targeting Computer 3735 | -10/Exiles | Identified AS-neutralizer No. 17b 4020 | -10/Exiles | Discovered new exit (range 14) 4044 | -10/Exiles | Entered Mines 4107 | -9/Mines | YI-UF0 nonchalantly dropped a Grenade Launcher on the ground 4125 | -9/Mines | Destroyed YI-UF0 4353 | -9/Mines | Destroyed self with Grenade Launcher Last Messages --------------- 04174_ HV Slug penetrates Wall. 04175_ K-01 Serf collects debris. 04177_ HV Slug penetrates K-01 Serf. 04177_ HV Slug penetrates R-06 Scavenger. 04177_ R-06 Scavenger suffers critical hit (Destroy). 04177_ Destroyed Com. Wheel. 04186_ Acquired 16 matter. 04226_ U-05 Engineer builds a Wall. 04231_ K-01 Serf collects debris. 04238_ HV Slug penetrates Wall. 04241_ K-01 Serf collects debris. 04245_ HV Slug penetrates K-01 Serf. 04245_ K-01 Serf suffers critical hit (Destroy). 04245_ K-01 Serf destroyed. 04245_ HV Slug penetrates U-05 Engineer. 04247_ K-01 Serf collects debris. 04248_ Acquired 28 matter. 04251_ K-01 Serf collects debris. 04264_ Extracted 34 matter. 04353_ S-10 Pest destroyed. Map ----- +----------------------------------------------------+ | ]! = ! !!]!*##???????????????????? | | #########!##???????????????????? | | ]##???????#=#####????????????????? | | ###????????#= #???????"????????? | | ???????????##### #??????? ????????? | | ???????????????# #??????? ????????? | | ???????????????# #??????? ????????? | | ???????#####???# #??????? ????????? | | ??????## ##??# ######?? ????????? | | ?????## #### ### #???????? | | ?????# ## #???????? | | ?????# = ##### ## #???????? | | ?????#* #???## ### #???????? | | ?????##* #????## ##?# #???????? | | ??????## ##?????# ##??# #???????? | | ???????####??????# #??# #???????? | | ?????????????????# #??# #???????? | | ?????????????????## #??# #???????? | | ??????????????????# #### #???????? | | ??????????????????# #???????? | | ??????????????????# ######???????? | | ??????????????????# #????????????? | | ??????????????????# #????????????? | | ??????????????????# s####?????????? | | ??????????????????# s ######???? | | ??????????????????# =% @ #???? | | ?????????????????# s #??? | | ?????????????????# # #??? | | ????????????????# ####?#t ##??? | | ???????????????# ##????? #???? | | ?????????????? #??????? #???? | | ???????????? #????????#???? | | ???????????# ##????????????? | | ???????????# #??????????????? | | ???????????# ###???????????????? | | ???????????# #??????????????????? | | ??????????? #???????????????????? | | ??????????? ????????????????????? | | ??????????????????????????????????? | | ??????????????????????????????????? | | ??????????????????????????????????? | | ??????????????????????????????????? | | ??????????????????????????????????? | | ??????????????????????????????????? | | ??????????????????????????????????? | | ??????????????????????????????????? | | ??????????????????????????????????? | | ??????????????????????????????????? | | ??????????????????????????????????? | | ??????????????????????????????????? | +----------------------------------------------------+ Best States ------------- Heat Dissipation 25 Energy Generation 19 Energy Capacity 310 Matter Stores 300 Matter Capacity 300 Sight Range 16 Terrain Scan Density 10 Armor Coverage 225 Evasion (%) 40 Recoil Reduction 2 Item Schematics ----------------- Hcp. Storage Unit | -10/Materials | Hacked Robot Schematics ------------------ None Fabricated ------------ Nothing Alien Tech Used ----------------- None Achievements -------------- None Challenges ------------ None Game ------ Seed OverloadOmegaDeconstructor Manual? 0 Play Time 00:21:50 Cumulative 518.0 hours Start 2021.11.28 @ 00:59:18 End 2021.11.28 @ 01:22:23 Sessions 1 Manual Loads 0 Difficulty Rogue Special Mode None Game No. 507 Rogue 507 Adventurer 0 Explorer 0 Win Type - Total 14 Types 9/1/3/1/0/0/0/0/0 Lore% 83 Gallery% 94 Achievement% 73 Wizard Run 0 Options --------- ASCII 0 Keyboard 0 Movement Mouse Keybinds 1 Fullscreen 2 Font 24/Smallcaps Map View 76x50 Tactical HUD 1 Map Filters NONE Filters NONE Steam 1 RUN: 3d6f410a-c305-4457-9bb1-fa5789e1663d